Workbook

Sheet Intro
A1: <Alt> + F11 to open VBA editor
A3: <fn> + <alt> + F11 on Mac
A6: Modules:
A7: CallBackLib | B7: Library functions for implementation of the CallBack functionality
A8: numLib | B8: Simple library of numerical routines
A9: statLib | B9: Statistical functions

Sheet Beregninger
A1: Quantity | B1: Motor 1 | C1: Motor 2 | D1: Drivstoff | E1: Formel motor 1
A2: MTTF | B2: 10000 | C2: 10000 | D2: 15000
A3: alpha | B3: 3 | C3: 3 | D3: 4
A4: t | B4: 5000 | C4: 7500 | D4: 3000
A5: x | B5: =10 -> 10 | C5: 10 | D5: 10
A6: lambda | B6: =_xlfn.GAMMA(1+1/alpha)/MTTF -> 8.929795116e-05 | C6: =_xlfn.GAMMA(1+1/C3)/C2 -> 8.929795116e-05 | D6: =_xlfn.GAMMA(1+1/D3)/D2 -> 6.04268318e-05 | E6: =_xlfn.FORMULATEXT(B6) -> =GAMMA(1+1/alpha)/MTTF
A7: R(x|t) | B7: =Rw(x+t,alpha,lambda)/_xlfn.SINGLE(Rw(t,alpha,lambda)) -> 0.9994650264 | C7: =Rw(C5+C4,C3,C6)/Rw(C4,C3,C6) -> 0.9987974718 | D7: =Rw(D5+D4,D3,D6)/Rw(D4,D3,D6) -> 0.9999855601 | E7: =_xlfn.FORMULATEXT(B7) -> =Rw(x+t,alpha,lambda)/@Rw(t,alpha,lambda)
A8: RC(x|t) | B8: =1-Rw(x+t,alpha,lambda)/Rw(t,alpha,lambda) -> 0.0005349735628 | C8: =1-Rw(C5+C4,C3,C6)/Rw(C4,C3,C6) -> 0.001202528207 | D8: =1-Rw(D5+D4,D3,D6)/Rw(D4,D3,D6) -> 1.443991019e-05 | E8: =_xlfn.FORMULATEXT(B8) -> =1-@Rw(x+t,alpha,lambda)/@Rw(t,alpha,lambda)
A9: z(t)Dt | B9: =alpha*lambda^alpha*t^(alpha-1) -> 5.34054707e-05 | C9: =C3*C6^C3*C4^(C3-1) -> 0.0001201623091 | D9: =D3*D6^D3*D4^(D3-1) -> 1.439935551e-06 | E9: =_xlfn.FORMULATEXT(B9) -> =alpha*lambda^alpha*t^(alpha-1)
A11: C = Komplementær, dvs 1-R i denne sammenhengen
A12: RC(x|t) = Sannsynlighet for IKKE å overleve flyturen, dvs qi i FTA
A13: Merk at cellene for RC(x|t) har fått Excel-navn, hhv q_M1, q_M2 og q_D
A15: Minimal cut sets:
C16: Q-bidrag | D16: Formel
A17: {D} | C17: =q_D -> 1.443991019e-05 | D17: =_xlfn.FORMULATEXT(C17) -> =q_D
A18: {M1,M2} | C18: =q_M1*q_M2 -> 6.433207992e-07 | D18: =_xlfn.FORMULATEXT(C18) -> =q_M1*q_M2
A19: Q0 | C19: =SUM(C17:C18) -> 1.508323099e-05 | D19: =SUM(C17:C18)
A21: Bruker her verdiene beregnet for RC(x|t), dvs q_M1, q_M2 og q_D. x = 10 for begge motorene, og drifstoffsystemet
A23: Feilraten, z(t)Dt, hvor Dt = 1 time, og t = alder på enheten, er da tilnærmet lik konstant feilrate på "turen over dammen"
A24: Feilratene kan da settes inn i FTA-programmet, og vi benytter "Ikke-reparerbar enhet", da vi ikke kan reparere "i lufta". Vi får samme svar som i Excel

Sheet Feiltre
A16: Minimal cut sets:
A18: {D}
A19: {M1,M2}
